bitfinex-derivatives/quotes_BNBF0:USTF0_20250511
["timestamp","ask_amount","ask_price","bid_price","bid_amount"]
[1746936840419,0.24544228,666.83,665.4,0.30057108]
[1746936840611,1.95202356,666.87,665.4,0.30057108]
[1746936841019,0.2452974,666.86,665.4,0.30057108]
[1746936841519,0.2452974,666.85,665.4,0.30057108]
[1746936841715,0.2452974,666.84,665.4,0.30057108]
[1746936842122,0.2452974,666.83,665.4,0.30057108]
[1746936842318,0.50659397,666.83,665.4,0.30057108]
[1746936842824,0.2452974,666.82,665.4,0.30057108]
[1746936843023,0.2452974,666.81,665.4,0.30057108]
[1746936843324,0.2452974,666.8,665.4,0.30057108]
[1746936843627,1.95202356,666.69,665.4,0.30057108]
[1746936844026,0.2452974,666.68,665.4,0.30057108]
[1746936844426,0.2452974,666.67,665.4,0.30057108]
[1746936844726,0.2452974,666.66,665.4,0.30057108]
[1746936845122,0.2452974,666.65,665.4,0.30057108]
[1746936845527,0.2452974,666.64,665.4,0.30057108]
[1746936845825,0.26129657,666.83,665.4,0.30057108]
[1746936845826,0.2452974,666.63,665.4,0.30057108]
[1746936846527,0.2452974,666.62,665.4,0.30057108]
[1746936846926,0.2452974,666.61,665.4,0.30057108]
[1746936847127,0.2452974,666.6,665.4,0.30057108]
[1746936847528,0.2452974,666.59,665.4,0.30057108]
[1746936847929,0.2452974,666.58,665.4,0.30057108]
[1746936848323,0.2452974,666.57,665.4,0.30057108]
[1746936848929,0.2452974,666.56,665.4,0.30057108]
[1746936849129,1.95202356,666.65,665.4,0.30057108]
[1746936849130,0.2452974,666.55,665.4,0.30057108]
[1746936849629,0.2452974,666.54,665.4,0.30057108]
[1746936849931,1.95202356,666.65,665.4,0.30057108]
[1746936850329,0.24529727,666.64,665.4,0.30057108]
[1746936850732,0.24529727,666.63,665.4,0.30057108]
[1746936850925,1.95202356,666.48,665.4,0.30057108]
[1746936851430,0.24529727,666.47,665.4,0.30057108]
[1746936851830,0.24529727,666.46,665.4,0.30057108]
[1746936852133,0.24529727,666.45,665.4,0.30057108]
[1746936852531,0.24529727,666.44,665.4,0.30057108]
[1746936852733,1.95202356,666.41,665.4,0.30057108]
[1746936853233,0.24529727,666.4,665.4,0.30057108]
[1746936853634,0.24529727,666.39,665.4,0.30057108]
[1746936854030,0.24529727,666.38,665.4,0.30057108]
[1746936854335,0.24529727,666.37,665.4,0.30057108]
[1746936854636,0.24529727,666.36,665.4,0.30057108]
[1746936854938,0.24529727,666.4,665.4,0.30057108]
[1746936855235,0.24529727,666.39,665.4,0.30057108]
[1746936855535,0.24529727,666.38,665.4,0.30057108]
[1746936855936,0.24529727,666.37,665.4,0.30057108]
[1746936856338,0.24529727,666.36,665.41,0.471]
[1746936856538,0.24529727,666.45,665.43,0.30055753]
[1746936856740,0.26152829,666.36,665.43,0.30055753]
[1746936857533,1.95202356,666.31,665.43,0.30055753]
[1746936857934,0.24529727,666.3,665.43,0.30055753]
[1746936859238,1.95202356,666.26,665.43,0.30055753]
[1746936859535,0.24529727,666.25,665.43,0.30055753]
[1746936860340,0.26138293,666.24,665.43,0.30055753]
[1746936860936,0.24530174,666.23,665.43,0.30055753]
[1746936863336,0.26139372,666.22,665.43,0.30055753]
[1746936863739,0.24530174,666.21,665.43,0.30055753]
[1746936866341,0.26137998,666.2,665.43,0.30055753]
[1746936866738,0.24530174,666.19,665.43,0.30055753]
[1746936870542,0.26137998,666.2,665.43,0.30055753]
[1746936871842,1.95202356,667.72,665.43,0.30055753]
[1746936872243,0.26122204,666.29,665.43,0.30055753]
[1746936872445,0.24529661,667.71,665.43,0.30055753]
[1746936872646,0.24529661,666.28,665.43,0.30055753]
[1746936873046,0.24529661,667.71,665.43,0.30055753]
[1746936873242,1.95202356,667.49,665.43,0.30055753]
[1746936873448,0.26120635,666.37,665.43,0.30055753]
[1746936873647,0.24529661,666.36,665.43,0.30055753]
[1746936874041,0.2612289,666.37,665.43,0.30055753]
[1746936874348,0.24529661,666.36,665.43,0.30055753]
[1746936876644,0.26124361,666.37,665.43,0.30055753]
[1746936876948,0.24526818,666.36,665.43,0.30055753]
[1746936878545,0.26128186,666.35,665.43,0.30055753]
[1746936878948,0.24526818,666.34,665.43,0.30055753]
[1746936880451,0.24526818,666.33,665.43,0.30055753]
[1746936880953,0.24526818,666.32,665.43,0.30055753]
[1746936881344,0.24526818,666.34,665.43,0.74755753]
[1746936881548,0.26133582,666.31,665.43,0.74755753]
[1746936881850,0.24526818,666.3,665.43,0.74755753]
[1746936882251,0.24526818,666.29,665.43,0.74755753]
[1746936882653,0.24526818,666.28,665.43,0.74755753]
[1746936882952,0.24526818,666.27,665.43,0.74755753]
[1746936883651,0.24526818,666.26,665.43,0.74755753]
[1746936884045,0.24526818,666.3,665.43,0.74755753]
[1746936884250,1.95202356,666.18,665.43,0.74755753]
[1746936884954,0.24526818,666.17,665.43,0.74755753]
[1746936887255,0.24526818,666.31,665.43,0.74755753]
[1746936887454,0.50661675,666.31,665.43,0.74755753]
[1746936887654,0.24526818,666.3,665.43,0.74755753]
[1746936890358,0.26134857,666.31,665.43,0.74755753]
[1746936890657,0.24527413,666.29,665.43,0.74755753]
[1746936891356,0.24527413,666.3,665.43,0.74755753]
[1746936893557,0.26131227,666.31,665.43,0.74755753]
[1746936893855,0.24527413,666.3,665.43,0.74755753]
[1746936899560,0.26130442,666.37,665.43,0.74755753]
[1746936899856,0.24527413,666.36,665.43,0.74755753]
[1746936901059,0.26128578,666.45,665.43,0.74755753]
[1746936901260,0.24527413,666.72,665.43,0.74755753]
[1746936901455,0.24527413,666.71,665.43,0.74755753]
[1746936901656,0.26126224,666.57,665.44,1.12364744]
[1746936901856,0.24527413,666.56,665.44,1.12364744]
[1746936902055,0.24527413,666.56,665.45,1.12364744]
[1746936902256,0.26126126,666.57,665.45,1.12364744]
[1746936902560,2.19729769,666.56,665.46,1.12364744]
[1746936902960,0.24527413,666.55,665.47,1.12364744]
[1746936903260,0.24527413,666.55,665.48,1.12364744]
[1746936903661,0.24527413,666.55,665.49,1.12364744]
[1746936903962,0.24527413,666.55,665.5,1.12364744]
[1746936904361,0.24527413,666.55,665.51,1.12364744]
[1746936904661,0.24527413,666.56,665.51,1.12364744]
[1746936905164,0.24527413,666.56,665.52,1.12364744]
[1746936905658,1.95202356,666.9,665.43,0.30055753]
[1746936905659,0.24527413,666.89,665.53,1.12364744]
[1746936905862,0.24527413,666.89,665.54,1.12364744]
[1746936906061,0.24527413,666.88,665.54,1.12364744]
[1746936906264,0.24527413,666.88,665.55,1.12364744]
[1746936906461,0.24527413,666.87,665.55,1.65664744]
[1746936906962,0.24527413,666.87,665.56,1.12364744]
[1746936907463,0.24527413,666.86,665.56,1.12364744]
[1746936907764,0.2612191,666.88,665.55,0.533]
[1746936908260,0.24514281,666.87,665.55,0.533]
[1746936908464,1.95202356,666.85,665.55,0.533]
[1746936908762,1.95202356,666.85,665.56,1.11815442]
[1746936908965,0.24514281,666.84,665.56,1.11815442]
[1746936909163,0.24514281,666.84,665.57,1.11815442]
[1746936909558,0.24514281,666.84,665.58,1.11815442]
[1746936910064,0.24514281,666.84,665.59,1.11815442]
[1746936910358,0.24514281,666.84,665.6,1.11815442]
[1746936910664,0.24514281,666.84,665.61,1.11815442]
[1746936910960,0.24514281,666.84,665.62,1.11815442]
[1746936911165,0.24514281,666.84,665.63,1.11815442]
[1746936911366,0.26112991,666.83,665.63,1.11815442]
[1746936911566,0.26112991,666.83,665.55,0.533]
[1746936911567,0.26112991,666.83,665.64,1.11815442]
[1746936911766,0.24514281,666.82,665.64,1.11815442]
[1746936912166,0.24514281,666.82,665.55,0.533]
[1746936912567,0.24514281,666.82,665.56,1.11538821]
[1746936912761,0.24514281,666.82,665.57,1.11538821]
[1746936913167,0.24514281,666.82,665.58,1.11538821]
[1746936913466,0.24514281,666.82,665.59,1.11538821]
[1746936913861,0.24514281,666.82,665.6,1.11538821]
[1746936914066,0.24514281,666.82,665.61,1.11538821]
[1746936914569,0.24514281,666.82,665.55,0.533]
[1746936915171,0.24514281,666.82,665.56,1.11395934]
[1746936915669,0.24514281,666.82,665.57,1.11395934]
[1746936916071,0.24514281,666.82,665.58,1.11389869]
[1746936916669,0.24514281,666.82,665.59,1.11389869]
[1746936916866,0.24514281,666.82,665.6,1.11389869]
[1746936917170,0.24514281,666.82,665.61,1.11389869]
[1746936917965,0.24514281,666.82,665.55,0.533]
[1746936918271,0.24514281,666.82,665.56,1.11284538]
[1746936918471,0.24514281,666.82,665.57,1.11284538]
[1746936918666,0.24514281,666.82,665.58,1.11284538]
[1746936918865,0.24514281,666.82,665.59,1.11284538]
[1746936919171,0.24514281,666.82,665.6,1.11284538]
[1746936919367,0.26112991,666.83,665.61,1.11284538]
[1746936919671,0.26112991,666.83,665.62,1.11284538]
[1746936919866,0.24505311,666.82,665.55,0.533]
[1746936920267,0.24505311,666.82,665.56,1.11238236]
[1746936920465,0.24505311,666.82,665.57,1.11238236]
[1746936920669,0.26108779,666.83,665.58,1.11238236]
[1746936920872,0.24505311,666.82,665.58,1.11238236]
[1746936921066,0.24505311,666.82,665.59,1.11238236]
[1746936921271,0.24505311,666.82,665.6,1.11238236]
[1746936921668,0.24505311,666.82,665.61,1.11238236]
[1746936921866,0.24505311,666.82,665.5,0.26108779]
[1746936922165,0.24505311,666.82,665.51,1.11198855]
[1746936922366,0.24505311,666.82,665.52,1.11198855]
[1746936922664,0.24505311,666.82,665.53,1.11198855]
[1746936922870,0.26107016,666.91,665.53,1.11198855]
[1746936923171,2.19707667,667.96,665.54,1.11198855]
[1746936923469,2.19707667,667.96,665.43,0.30055753]
[1746936923470,0.24505311,666.9,665.55,1.11198855]
[1746936923669,0.24505311,667.95,665.56,1.11198855]
[1746936924071,0.24505311,667.94,665.56,1.11198855]
[1746936924267,0.24505311,667.94,665.57,1.11198855]
[1746936924473,0.24505311,667.93,665.58,1.11198855]
[1746936924673,0.24505311,667.93,665.58,1.57498855]
[1746936924968,0.24505311,667.92,665.59,1.11198855]
[1746936925175,1.95202356,667.68,665.6,1.11198855]
[1746936925370,1.95202356,667.68,665.58,0.463]
[1746936925371,1.95202356,667.68,665.61,1.11198855]
[1746936925568,1.95202356,667.68,665.62,1.11198855]
[1746936925771,0.24505311,667.67,665.63,1.11198855]
[1746936925967,0.24505311,667.66,665.63,1.11198855]
[1746936926173,0.24505311,667.66,665.58,0.463]
[1746936926376,0.24505311,667.65,665.58,0.463]
[1746936927074,0.24505311,667.64,665.58,0.463]
[1746936927375,0.24505311,667.63,665.58,0.463]
[1746936927877,0.24505311,667.62,665.58,0.463]
[1746936928076,0.24505311,667.61,665.59,0.27589173]
[1746936928472,0.24505311,667.6,665.58,0.463]
[1746936928773,0.24505311,667.59,665.58,0.463]
[1746936929277,0.24505311,667.58,665.58,0.463]
[1746936929576,0.24505311,667.57,665.58,0.463]
[1746936929777,1.95202356,667.38,665.59,1.10904403]
[1746936930174,0.24505311,667.37,665.6,1.10904403]
[1746936930372,0.24505311,667.37,665.61,1.10904403]
[1746936930570,1.95202356,667.38,665.61,1.10904403]
[1746936930777,0.24497682,667.37,665.62,1.10904403]
[1746936930975,0.24497682,667.37,665.63,1.10904403]
[1746936931171,0.24497682,667.36,665.63,1.10904403]
[1746936931379,0.24497682,667.35,665.64,1.10904403]
[1746936931677,0.24497682,667.35,665.65,1.10904403]
[1746936931973,0.24497682,667.34,665.65,1.10904403]
[1746936932377,0.24497682,667.34,665.66,1.10904403]
[1746936932378,0.24497682,667.33,665.66,1.10904403]
[1746936932570,0.24497682,667.33,665.67,1.10904403]
[1746936932773,0.2610731,667.34,665.58,0.7240731]
[1746936932774,0.24497682,667.32,665.68,1.10904403]
[1746936932976,0.24497682,667.32,665.69,1.10904403]
[1746936933175,0.24497682,667.31,665.7,1.10904403]
[1746936933479,0.24497682,667.3,665.7,1.10904403]
[1746936933680,0.24497682,667.3,665.71,1.10904403]
[1746936933883,0.24497682,667.29,665.71,1.10904403]
[1746936934179,0.24497682,667.29,665.72,1.10904403]
[1746936934379,0.24497682,667.28,665.73,1.10904403]
[1746936934577,0.24497682,667.28,665.74,1.10904403]
[1746936934781,0.24497682,667.28,665.75,1.10904403]
[1746936934980,0.24497682,667.27,665.76,1.10904403]
[1746936935178,0.24497682,667.27,665.77,1.10904403]
[1746936935376,0.2610447,667.26,665.78,1.10904403]
[1746936935776,0.24497682,667.25,665.79,1.10904403]
[1746936936181,0.24497682,667.25,665.8,1.10904403]
[1746936936381,0.24497682,667.25,665.81,1.10904403]
[1746936936682,0.24497682,667.25,665.82,1.10681784]
[1746936937082,0.24497682,667.25,665.83,1.10681784]
[1746936937584,0.24497682,667.25,665.66,1.10681784]
[1746936937782,0.24497682,667.25,665.67,1.10681784]
[1746936937980,0.24497682,667.25,665.65,0.2610447]
[1746936937981,0.24497682,667.25,665.68,1.10681784]
[1746936938181,0.24497682,667.25,665.69,1.10681784]
[1746936938381,0.24497682,667.25,665.7,1.10681784]
[1746936938579,0.2610545,667.24,665.71,1.10681784]
[1746936938783,0.24497682,667.23,665.72,1.10681784]
[1746936939181,0.24497682,667.23,665.73,1.10681784]
[1746936939382,0.24497682,667.22,665.73,1.10681784]
[1746936939580,0.24497682,667.21,665.66,0.2610545]
[1746936940083,0.24497682,667.2,665.66,0.2610545]
[1746936940483,0.24497682,667.19,665.66,0.2610545]
[1746936940684,0.24497682,667.18,665.67,1.10664552]
[1746936940883,0.24497682,667.18,665.68,1.10664552]
[1746936941082,0.24497682,667.23,665.68,1.10664552]
[1746936941283,0.24497682,667.23,665.67,1.10664552]
[1746936941582,0.24497682,667.22,665.68,1.10664552]
[1746936941778,0.24497682,667.21,665.68,1.10664552]
[1746936941983,0.24497682,667.21,665.69,1.10664552]
[1746936942183,0.24497682,667.21,665.67,1.10664552]
[1746936942483,0.24497682,667.2,665.7,1.10664552]
[1746936942684,0.24497682,667.2,665.71,1.10664552]
[1746936942882,0.24497682,667.19,665.71,1.10664552]
[1746936943185,0.24497682,667.19,665.72,1.10664552]
[1746936943385,0.24497682,667.18,665.67,1.10664552]
[1746936943583,0.24497682,667.18,665.68,1.10664552]
[1746936943781,0.24497682,667.23,665.68,1.10664552]
[1746936943982,0.24497682,667.22,665.68,1.10664552]
[1746936944283,0.24497682,667.21,665.69,1.10664552]
[1746936944686,0.24497682,667.21,665.7,1.10664552]
[1746936944884,0.24497682,667.2,665.7,1.10664552]
[1746936945188,0.24497682,667.19,665.71,1.10664552]
[1746936945689,0.24497682,667.18,665.68,1.10664552]
[1746936945989,0.26107016,667.22,665.68,1.10664552]
[1746936946190,0.26107016,667.22,665.69,1.10664552]
[1746936946591,0.24495025,667.21,665.69,1.10664552]
[1746936946792,0.24495025,667.21,665.7,1.10664552]
[1746936946987,0.24495025,667.2,665.7,1.10664552]
[1746936947189,0.24495025,667.2,665.71,1.10664552]
[1746936947386,1.95202356,667.07,665.73,0.30042209]
[1746936947788,0.24495025,667.06,665.74,1.10664552]
[1746936948692,0.24495025,667.05,665.74,1.10664552]
[1746936949090,0.24495025,667.04,665.74,1.10664552]
[1746936949391,0.24495025,667.06,665.74,1.10664552]
[1746936950493,0.24495025,667.06,665.75,0.547]
[1746936950692,0.24495025,667.06,665.76,1.10664552]
[1746936951393,1.95202356,667.07,665.76,1.10664552]
[1746936951992,2.21310645,667.18,665.76,1.10664552]
[1746936952193,0.24495033,667.06,665.77,1.1080995]
[1746936952492,0.24495033,667.06,665.78,1.1080995]
[1746936952693,0.24495033,667.17,665.76,1.1080995]
[1746936952993,0.24495033,667.17,665.77,1.1080995]
[1746936953192,0.24495033,667.17,665.78,1.1080995]
[1746936953594,0.24495033,667.17,665.79,1.1080995]
[1746936953792,0.24495033,667.17,665.8,1.10882013]
[1746936953994,0.24495033,667.17,665.75,0.547]
[1746936953995,1.95202356,667.16,665.81,1.10882013]
[1746936954290,1.95202356,667.16,665.82,1.10882013]
[1746936954493,0.50602931,667.15,665.82,1.10882013]
[1746936954689,0.50602931,667.15,665.83,1.10882013]
[1746936954895,0.24495033,667.14,665.76,1.10882013]
[1746936955094,0.24495033,667.14,665.77,1.10882013]
[1746936955694,0.24495033,667.14,665.78,1.10882013]
[1746936956190,0.24495033,667.14,665.79,1.10882013]
[1746936956694,0.26108289,667.13,665.8,1.10882013]
[1746936956993,0.26108289,667.13,665.81,1.10882013]
[1746936957194,0.24495033,667.12,665.81,1.10882013]
[1746936957494,0.24495033,667.12,665.82,1.10882013]
[1746936957795,0.24495033,667.12,665.83,1.10882013]
[1746936958396,0.24495033,667.12,665.84,1.10882013]
[1746936958790,0.24495033,667.12,665.85,1.10882013]
[1746936959296,0.24495033,667.12,665.86,1.10882013]
[1746936959595,0.24495033,667.12,665.88,0.30035441]
[1746936959796,0.24495033,667.24,665.88,0.30035441]
[1746936959996,0.24495033,667.24,665.89,1.10882013]
[1746936960391,0.26106429,667.23,665.9,1.10882013]
[1746936960593,0.24495033,667.22,665.9,1.10882013]
[1746936960800,0.24495033,667.22,665.91,0.30034088]
[1746936961297,0.24495033,667.22,665.92,1.10882013]
[1746936962397,0.26105743,667.21,665.92,1.10882013]
[1746936962692,0.24495033,667.2,665.92,1.10882013]
[1746936963098,0.26105743,667.21,665.92,1.10882013]
[1746936963099,0.24495033,667.19,665.92,1.10882013]
[1746936963396,0.24495033,667.18,665.92,1.10882013]
[1746936963801,0.24495033,667.17,665.92,1.10882013]
[1746936964101,0.24495033,667.16,665.92,1.10882013]
[1746936964802,0.24495033,667.15,665.92,1.10882013]
[1746936965100,0.24495033,667.14,665.92,1.10882013]
[1746936965401,0.24495033,667.13,665.94,0.30032735]
[1746936965696,0.24495033,667.14,665.94,0.30032735]
[1746936965901,0.24495033,667.14,665.95,1.10882013]
[1746936966201,0.24495033,667.14,665.97,0.30031382]
[1746936966501,0.2610682,667.13,665.98,1.10882013]
[1746936966702,0.24495033,667.12,665.98,1.10882013]
[1746936967201,0.24495033,667.12,666.0,0.3003003]
[1746936968403,0.24495033,667.12,666.01,1.11700655]
[1746936968603,0.24495033,667.33,666.03,0.30028677]
[1746936968997,0.24495033,667.32,666.03,0.30028677]
[1746936969303,0.24495033,667.31,666.03,0.30028677]
[1746936969904,1.95202356,667.26,666.03,0.30028677]
[1746936970507,0.24495033,667.25,666.03,0.30028677]
[1746936972203,0.24495033,667.57,666.03,0.30028677]
[1746936972407,0.26106918,667.24,666.03,0.30028677]
[1746936972605,0.24495033,667.56,666.03,0.30028677]
[1746936972806,0.24495033,667.23,666.03,0.30028677]
[1746936973207,0.24495033,667.57,666.03,0.30028677]
[1746936973508,1.95202356,667.54,666.03,0.30028677]
[1746936974007,0.50600874,667.53,666.03,0.30028677]
[1746936974208,0.24495033,667.53,666.03,0.30028677]
[1746936974408,1.95202356,667.54,666.03,0.30028677]
[1746936974409,0.24495033,667.52,666.03,0.30028677]
[1746936974806,0.24495033,667.51,666.03,0.30028677]
[1746936975107,0.24495033,667.5,666.03,0.30028677]
[1746936975306,1.95202356,667.46,666.03,0.30028677]
[1746936975803,0.24495033,667.45,666.03,0.30028677]
[1746936976103,0.24495033,667.44,666.03,0.30028677]
[1746936976507,0.24495033,667.43,666.03,0.30028677]
[1746936976807,1.95202356,667.46,666.03,0.30028677]
[1746936976808,0.24495033,667.42,666.03,0.30028677]
[1746936977304,0.24495033,667.41,666.03,0.30028677]
[1746936977810,0.24495033,667.4,666.03,0.30028677]
[1746936978412,0.24495033,667.39,666.04,0.409]
[1746936978712,0.24495033,667.39,666.06,0.30027324]
[1746936979010,1.95202356,667.41,666.06,0.30027324]
[1746936979207,0.24501096,667.38,666.06,0.30027324]
[1746936979403,0.24501096,667.37,666.06,0.30027324]
[1746936979808,0.24501096,667.36,666.06,0.30027324]
[1746936980205,0.24501096,667.35,666.06,0.30027324]
[1746936980409,0.24501096,667.34,666.06,0.30027324]
[1746936980711,0.24501096,667.33,666.06,0.30027324]
[1746936981210,0.24501096,667.32,666.06,0.30027324]
[1746936981511,1.95202356,667.22,666.06,0.30027324]
[1746936982412,0.2450916,667.21,666.06,0.30027324]
[1746936982813,0.2450916,667.2,666.06,0.30027324]
[1746936983112,0.2450916,667.19,666.06,0.30027324]
[1746936983413,0.2450916,667.18,666.06,0.30027324]
[1746936983812,0.2450916,667.17,666.06,0.30027324]
[1746936984111,0.2450916,667.16,666.06,0.30027324]
[1746936984411,0.2450916,667.15,666.06,0.30027324]
[1746936984707,1.95202356,667.13,666.06,0.30027324]
[1746936985208,0.2450916,667.12,666.06,0.30027324]
[1746936985511,0.2450916,667.11,666.06,0.30027324]
[1746936985912,0.2450916,667.1,666.06,0.30027324]
[1746936986108,0.2450916,667.09,666.06,0.30027324]
[1746936986513,0.2450916,667.08,666.06,0.30027324]
[1746936986714,0.2450916,667.07,666.06,0.30027324]
[1746936987111,0.2450916,667.06,666.06,0.30027324]
[1746936987415,0.50620486,667.06,666.06,0.30027324]
[1746936987617,0.2450916,667.05,666.06,0.30027324]
[1746936987909,0.2450916,667.04,666.06,0.30027324]
[1746936988214,0.2450916,667.03,666.06,0.30027324]
[1746936988614,0.2450916,667.02,666.06,0.30027324]
[1746936989115,0.2450916,667.01,666.06,0.30027324]
[1746936989313,0.50620486,667.01,666.06,0.30027324]
[1746936989510,0.2450916,667.0,666.06,0.30027324]
[1746936989915,0.2450916,666.99,666.06,0.30027324]
[1746936990415,0.2450916,666.98,666.06,0.30027324]
[1746936990614,0.2450916,666.97,666.06,0.30027324]
[1746936991014,0.2450916,666.96,666.06,0.30027324]
[1746936991414,0.2450916,666.95,666.06,0.30027324]
[1746936991710,0.26111326,667.01,666.06,0.30027324]
[1746936992016,0.24503987,667.0,666.06,0.30027324]
[1746936992312,0.24503987,666.99,666.06,0.30027324]
[1746936992916,0.24503987,666.98,666.06,0.30027324]
[1746936993215,0.24503987,666.97,666.06,0.30027324]
[1746936993517,0.24503987,666.96,666.06,0.30027324]
[1746936993817,0.24503987,666.95,666.06,0.30027324]
[1746936994317,0.24503987,666.94,666.06,0.30027324]
[1746936994619,0.26111326,667.01,666.06,0.30027324]
[1746936995019,0.24504288,667.0,666.06,0.30027324]
[1746936995415,0.24504288,666.99,666.06,0.67227324]
[1746936995819,0.24504288,666.98,666.06,0.67227324]
[1746936996217,0.24504288,666.97,666.06,0.67227324]
[1746936996519,0.24504288,666.96,666.06,0.67227324]
[1746936996919,0.24504288,666.95,666.06,0.67227324]
[1746936997319,0.24504288,666.94,666.06,0.67227324]
[1746936997816,0.24504288,666.93,666.06,0.67227324]
[1746936998022,0.24504288,666.92,666.06,0.67227324]
[1746936998517,0.24504288,666.99,666.06,0.67227324]
[1746936998921,0.50617573,666.98,666.06,0.67227324]
[1746936999121,0.24504288,666.97,666.06,0.67227324]
[1746936999724,0.24504288,666.96,666.06,0.67227324]
[1746937000021,0.24504288,666.95,666.06,0.67227324]
[1746937000422,0.24504288,666.94,666.06,0.67227324]
[1746937000723,0.24504288,666.93,666.06,0.67227324]
[1746937001026,0.24504288,666.92,666.06,0.67227324]
[1746937001325,0.24504288,666.97,666.06,0.67227324]
[1746937001522,0.26113187,666.91,666.06,0.67227324]
[1746937002121,0.24504288,666.9,666.06,0.67227324]
[1746937004525,0.50617181,666.89,666.06,0.67227324]
[1746937004924,0.24504288,666.88,666.06,0.67227324]
[1746937005229,0.24504288,666.87,666.06,0.67227324]
[1746937005730,0.24504288,666.86,666.06,0.67227324]
[1746937005929,0.24504288,666.85,666.06,0.67227324]
[1746937006331,0.24504288,666.84,666.06,0.67227324]
[1746937006631,0.24504288,666.83,666.06,0.67227324]
[1746937006931,0.24504288,666.87,666.06,0.67227324]
[1746937007328,0.50620513,666.86,666.06,0.67227324]
[1746937007732,0.24504288,666.85,666.06,0.67227324]
[1746937008132,0.24504288,666.84,666.06,0.67227324]
[1746937008632,0.24504288,666.83,666.06,0.67227324]
[1746937009134,2.19706644,666.82,666.06,0.67227324]
[1746937009334,0.24504288,666.81,666.06,0.67227324]
[1746937009633,0.24504288,666.8,666.06,0.67227324]
[1746937010129,0.24504288,666.79,666.06,0.67227324]
[1746937010434,0.24504288,666.78,666.06,0.67227324]
[1746937010733,0.24504288,666.77,666.06,0.67227324]
[1746937011238,0.24504288,666.81,666.06,0.67227324]
[1746937011437,0.26116813,666.76,666.06,0.67227324]
[1746937012237,0.24509906,666.75,666.06,0.67227324]
[1746937013737,0.24509906,666.96,666.06,0.67227324]
[1746937013934,0.24509906,666.95,666.06,0.67227324]
[1746937014338,0.24509906,666.94,666.06,0.67227324]
[1746937014538,0.50621722,666.94,666.06,0.67227324]
[1746937014841,0.26111816,666.94,666.06,0.67227324]
[1746937015034,0.24509906,666.93,666.06,0.67227324]
[1746937016441,0.24509906,667.03,666.06,0.67227324]
[1746937016740,0.24509906,667.02,666.06,0.67227324]
[1746937017142,0.24509906,667.01,666.06,0.67227324]
[1746937017441,0.24509906,667.0,666.06,0.67227324]
[1746937019638,0.24509906,667.05,666.06,0.67227324]
[1746937019944,0.24509906,667.04,666.06,0.67227324]
[1746937020243,0.24509906,667.03,666.06,0.67227324]
[1746937020445,0.5062084,667.03,666.06,0.67227324]
[1746937020742,0.24509906,667.02,666.06,0.67227324]
[1746937020943,0.24509906,667.01,666.06,0.67227324]
[1746937021444,0.24509906,667.0,666.06,0.67227324]
[1746937021844,0.24509906,666.99,666.06,0.67227324]
[1746937022445,0.24509906,666.98,666.06,0.67227324]
[1746937023340,0.24509906,667.06,666.06,0.67227324]
[1746937023538,0.26112207,666.97,666.06,0.67227324]
[1746937023739,0.24509906,666.96,666.06,0.67227324]
[1746937024143,0.24509906,667.06,666.06,0.67227324]
[1746937024544,0.24509906,667.05,666.06,0.67227324]
[1746937024843,0.24509906,667.04,666.06,0.67227324]
[1746937025139,0.24509906,667.03,666.06,0.67227324]
[1746937025348,0.50622897,667.03,666.06,0.67227324]
[1746937025644,0.24509906,667.02,666.06,0.67227324]
[1746937025943,0.24509906,667.01,666.06,0.67227324]
[1746937026239,0.24509906,667.0,666.06,0.67227324]
[1746937026544,0.24509906,666.99,666.06,0.67227324]
[1746937026844,0.24509906,666.98,666.06,0.67227324]
[1746937027145,0.24509906,666.97,666.06,0.67227324]
[1746937027443,0.24509906,666.96,666.06,0.67227324]
[1746937027944,0.24509906,666.95,666.06,0.67227324]
[1746937028443,0.24509906,666.94,666.06,0.67227324]
[1746937028744,0.24509906,666.93,666.06,0.67227324]
[1746937029445,2.21314759,666.92,666.06,0.67227324]
[1746937029645,2.45824665,666.92,666.06,0.67227324]
[1746937030044,0.24509906,666.91,666.06,0.67227324]
[1746937030346,0.24509906,666.9,666.06,0.67227324]
[1746937030848,0.24509906,666.89,666.06,0.67227324]
[1746937031247,1.95202356,666.86,666.06,0.67227324]
[1746937031642,0.24509906,666.85,666.06,0.67227324]
[1746937031943,0.24509906,666.84,666.06,0.67227324]
[1746937032346,0.24509906,666.83,666.06,0.67227324]
[1746937032746,0.24509906,666.82,666.06,0.67227324]
[1746937033046,0.24509906,666.81,666.06,0.67227324]
[1746937033242,0.24509906,666.8,666.06,0.67227324]
[1746937033548,0.24509906,666.79,666.06,0.67227324]
[1746937033946,1.95202356,666.7,666.06,0.67227324]
[1746937034448,0.24509906,666.69,666.06,0.67227324]
[1746937035854,1.95202356,666.65,666.06,0.67227324]
[1746937036248,0.24509906,666.64,666.06,0.67227324]
[1746937038650,0.26116715,666.76,666.06,0.67227324]
[1746937039048,0.24509906,666.75,666.06,0.67227324]
[1746937040453,0.24509906,666.78,666.06,0.67227324]
[1746937041150,0.26114069,666.77,666.06,0.67227324]
[1746937041655,0.24509906,666.76,666.06,0.67227324]
[1746937043451,0.26113579,666.76,666.06,0.67227324]
[1746937043755,0.24509906,666.75,666.06,0.67227324]
[1746937046558,0.24509906,667.0,666.06,0.67227324]